[Event "Titled Tuesday Blitz July 4 Late 2023"]
[White "Dixit, Nikhil"]
[Black "Vaglio Munoz, Jaime"]
[WhiteFideId "5059534"]
[BlackFideId "6500145"]
[WhiteElo "2489"]
[BlackElo "2291"]
[Result "1-0"]
[Round "2"]
[TimeControl "180+2"]
[Date "2023.07.04"]
[WhiteClock "0:00:16"]
[BlackClock "0:00:47"]
[Board "152"]

1. e4 {[%clk 0:02:56]}  c5 {[%clk 0:02:59]} 2. Nf3 {[%clk 0:02:55]}  Qa5 {[%clk 0:02:59]} 3. Nc3 {[%clk 0:02:44]}  a6 {[%clk 0:02:58]} 4. Bc4 {[%clk 0:02:32]}  e6 {[%clk 0:02:57]} 5. a4 {[%clk 0:02:31]}  b5 {[%clk 0:02:57]} 6. Be2 {[%clk 0:02:28]}  Bb7 {[%clk 0:02:57]} 7. d3 {[%clk 0:02:20]}  Nf6 {[%clk 0:02:51]} 8. O-O {[%clk 0:02:16]}  b4 {[%clk 0:02:50]} 9. Nb1 {[%clk 0:02:16]}  d5 {[%clk 0:02:49]} 10. exd5 {[%clk 0:02:13]}  Bxd5 {[%clk 0:02:50]} 11. Nbd2 {[%clk 0:02:00]}  Be7 {[%clk 0:02:48]} 12. Ne5 {[%clk 0:02:00]}  Nbd7 {[%clk 0:02:42]} 13. Ndc4 {[%clk 0:01:57]}  Qc7 {[%clk 0:02:41]} 14. Nxd7 {[%clk 0:01:54]}  Nxd7 {[%clk 0:02:38]} 15. Bf3 {[%clk 0:01:49]}  Nf6 {[%clk 0:02:37]} 16. b3 {[%clk 0:01:33]}  O-O {[%clk 0:02:34]} 17. Bb2 {[%clk 0:01:31]}  Rad8 {[%clk 0:02:32]} 18. Qe2 {[%clk 0:01:29]}  Bxc4 {[%clk 0:02:28]} 19. bxc4 {[%clk 0:01:17]}  Qf4 {[%clk 0:02:26]} 20. Be5 {[%clk 0:01:11]}  Qf5 {[%clk 0:02:25]} 21. Bxf6 {[%clk 0:00:42]}  Bxf6 {[%clk 0:02:23]} 22. Rab1 {[%clk 0:00:41]}  a5 {[%clk 0:02:23]} 23. Qe4 {[%clk 0:00:41]}  Qxe4 {[%clk 0:02:22]} 24. Bxe4 {[%clk 0:00:42]}  Bc3 {[%clk 0:02:20]} 25. g3 {[%clk 0:00:42]}  f5 {[%clk 0:02:19]} 26. Bf3 {[%clk 0:00:41]}  Kf7 {[%clk 0:02:19]} 27. Kg2 {[%clk 0:00:42]}  Kf6 {[%clk 0:02:18]} 28. h3 {[%clk 0:00:42]}  g5 {[%clk 0:02:19]} 29. Rh1 {[%clk 0:00:41]}  h5 {[%clk 0:02:18]} 30. Bxh5 {[%clk 0:00:38]}  e5 {[%clk 0:02:09]} 31. Bf3 {[%clk 0:00:38]}  e4 {[%clk 0:02:06]} 32. dxe4 {[%clk 0:00:39]}  Rd2 {[%clk 0:02:05]} 33. exf5 {[%clk 0:00:32]}  Kxf5 {[%clk 0:02:01]} 34. Rhe1 {[%clk 0:00:23]}  Bd4 {[%clk 0:01:59]} 35. Re2 {[%clk 0:00:19]}  Rxe2 {[%clk 0:01:58]} 36. Bxe2 {[%clk 0:00:20]}  Re8 {[%clk 0:01:53]} 37. Bd3+ {[%clk 0:00:20]}  Kf6 {[%clk 0:01:52]} 38. Kf1 {[%clk 0:00:20]}  Rh8 {[%clk 0:01:49]} 39. Kg2 {[%clk 0:00:19]}  Re8 {[%clk 0:01:47]} 40. Kf3 {[%clk 0:00:20]}  Bc3 {[%clk 0:01:46]} 41. Rh1 {[%clk 0:00:20]}  Be1 {[%clk 0:01:41]} 42. h4 {[%clk 0:00:20]}  g4+ {[%clk 0:01:40]} 43. Kxg4 {[%clk 0:00:20]}  Bxf2 {[%clk 0:01:40]} 44. Kf3 {[%clk 0:00:20]}  Bd4 {[%clk 0:01:40]} 45. g4 {[%clk 0:00:20]}  Rf8 {[%clk 0:01:39]} 46. g5+ {[%clk 0:00:21]}  Ke5+ {[%clk 0:01:39]} 47. Kg4 {[%clk 0:00:22]}  Rf4+ {[%clk 0:01:34]} 48. Kh5 {[%clk 0:00:23]}  Bf2 {[%clk 0:01:34]} 49. g6 {[%clk 0:00:20]}  Rf8 {[%clk 0:01:32]} 50. Kg5 {[%clk 0:00:19]}  Be3+ {[%clk 0:01:31]} 51. Kg4 {[%clk 0:00:19]}  Rf4+ {[%clk 0:01:31]} 52. Kg3 {[%clk 0:00:19]}  Bf2+ {[%clk 0:01:30]} 53. Kg2 {[%clk 0:00:20]}  Bxh4 {[%clk 0:01:29]} 54. g7 {[%clk 0:00:19]}  Rg4+ {[%clk 0:01:28]} 55. Kf3 {[%clk 0:00:17]}  Rg3+ {[%clk 0:01:25]} 56. Kf2 {[%clk 0:00:14]}  Rg4+ {[%clk 0:01:19]} 57. Kf3 {[%clk 0:00:12]}  Rg3+ {[%clk 0:01:19]} 58. Ke2 {[%clk 0:00:12]}  Bf6 {[%clk 0:01:17]} 59. Rh5+ {[%clk 0:00:11]}  Kd6 {[%clk 0:01:15]} 60. Rd5+ {[%clk 0:00:11]}  Ke7 {[%clk 0:01:15]} 61. Rxc5 {[%clk 0:00:11]}  Bxg7 {[%clk 0:01:12]} 62. Rxa5 {[%clk 0:00:11]}  Bc3 {[%clk 0:01:12]} 63. Rb5 {[%clk 0:00:12]}  Rg2+ {[%clk 0:01:12]} 64. Kf3 {[%clk 0:00:11]}  Rg1 {[%clk 0:01:12]} 65. Ke4 {[%clk 0:00:11]}  Ra1 {[%clk 0:01:12]} 66. Kd5 {[%clk 0:00:12]}  Rg1 {[%clk 0:01:11]} 67. Kc6 {[%clk 0:00:12]}  Rg8 {[%clk 0:01:07]} 68. a5 {[%clk 0:00:11]}  Rc8+ {[%clk 0:01:03]} 69. Kb7 {[%clk 0:00:11]}  Rd8 {[%clk 0:01:03]} 70. a6 {[%clk 0:00:12]}  Bd4 {[%clk 0:01:01]} 71. Rd5 {[%clk 0:00:10]}  b3 {[%clk 0:00:59]} 72. cxb3 {[%clk 0:00:10]}  Rxd5 {[%clk 0:00:47]} 73. cxd5 {[%clk 0:00:11]}  Kd6 {[%clk 0:00:47]} 74. a7 {[%clk 0:00:11]}  Bxa7 {[%clk 0:00:47]} 75. Kxa7 {[%clk 0:00:12]}  Kxd5 {[%clk 0:00:47]} 76. Bc4+ {[%clk 0:00:13]}  Kc5 {[%clk 0:00:48]} 77. Ka6 {[%clk 0:00:13]}  Kb4 {[%clk 0:00:49]} 78. Kb6 {[%clk 0:00:14]}  Kc3 {[%clk 0:00:48]} 79. Kc5 {[%clk 0:00:14]}  Kb2 {[%clk 0:00:45]} 80. b4 {[%clk 0:00:15]}  Ka3 {[%clk 0:00:46]} 81. b5 {[%clk 0:00:16]}  Ka4 {[%clk 0:00:46]} 82. b6 {[%clk 0:00:17]}  Ka5 {[%clk 0:00:46]} 83. b7 {[%clk 0:00:17]}  Ka4 {[%clk 0:00:46]} 84. b8=Q {[%clk 0:00:17]}  Ka3 {[%clk 0:00:47]} 85. Qb3# {[%clk 0:00:16]} 1-0


[Site "https://www.chess.com"]

[Event "Titled Tuesday Blitz July 4 Late 2023"]
[White "Zampronha, Wladimir Camilo"]
[Black "Silva, Caio Henrique Angelico"]
[WhiteFideId "2103087"]
[BlackFideId "22777210"]
[WhiteElo "2286"]
[BlackElo "2486"]
[Result "0-1"]
[Round "2"]
[TimeControl "180+2"]
[Date "2023.07.04"]
[WhiteClock "0:00:23"]
[BlackClock "0:02:01"]
[Board "153"]

1. e4 {[%clk 0:03:00]}  c6 {[%clk 0:03:00]} 2. d4 {[%clk 0:02:59]}  d5 {[%clk 0:03:01]} 3. e5 {[%clk 0:02:59]}  Bf5 {[%clk 0:03:01]} 4. Nf3 {[%clk 0:03:00]}  e6 {[%clk 0:03:01]} 5. Be2 {[%clk 0:03:00]}  Nd7 {[%clk 0:02:59]} 6. O-O {[%clk 0:03:01]}  Ne7 {[%clk 0:02:59]} 7. Nh4 {[%clk 0:02:55]}  Bg6 {[%clk 0:02:57]} 8. Nd2 {[%clk 0:02:53]}  Nf5 {[%clk 0:02:57]} 9. Nxg6 {[%clk 0:02:53]}  hxg6 {[%clk 0:02:58]} 10. Nf3 {[%clk 0:02:53]}  c5 {[%clk 0:02:56]} 11. c3 {[%clk 0:02:52]}  Nb8 {[%clk 0:02:54]} 12. Bd3 {[%clk 0:02:49]}  Nc6 {[%clk 0:02:53]} 13. Bxf5 {[%clk 0:02:47]}  gxf5 {[%clk 0:02:54]} 14. Qb3 {[%clk 0:02:41]}  Qb6 {[%clk 0:02:53]} 15. Be3 {[%clk 0:02:36]}  cxd4 {[%clk 0:02:49]} 16. Qxb6 {[%clk 0:02:35]}  axb6 {[%clk 0:02:48]} 17. cxd4 {[%clk 0:02:31]}  f6 {[%clk 0:02:46]} 18. Rfc1 {[%clk 0:02:21]}  Kd7 {[%clk 0:02:43]} 19. exf6 {[%clk 0:02:15]}  gxf6 {[%clk 0:02:43]} 20. g3 {[%clk 0:02:11]}  Bd6 {[%clk 0:02:42]} 21. a3 {[%clk 0:02:03]}  Na5 {[%clk 0:02:40]} 22. Nd2 {[%clk 0:01:59]}  e5 {[%clk 0:02:36]} 23. dxe5 {[%clk 0:01:53]}  fxe5 {[%clk 0:02:36]} 24. Bxb6 {[%clk 0:01:52]}  Nc6 {[%clk 0:02:36]} 25. Bc5 {[%clk 0:01:51]}  d4 {[%clk 0:02:09]} 26. Bxd6 {[%clk 0:01:48]}  Kxd6 {[%clk 0:02:10]} 27. Nc4+ {[%clk 0:01:47]}  Ke6 {[%clk 0:02:10]} 28. Kg2 {[%clk 0:01:41]}  e4 {[%clk 0:02:09]} 29. b4 {[%clk 0:01:10]}  d3 {[%clk 0:02:07]} 30. b5 {[%clk 0:01:10]}  Nd4 {[%clk 0:02:07]} 31. Rab1 {[%clk 0:00:46]}  Nf3 {[%clk 0:02:04]} 32. Ne3 {[%clk 0:00:41]}  Rxh2+ {[%clk 0:02:03]} 33. Kf1 {[%clk 0:00:23]}  Rah8 {[%clk 0:02:01]} 0-1


[Site "https://www.chess.com"]

[Event "Titled Tuesday Blitz July 4 Late 2023"]
[White "Broca Jimenez, Fernando"]
[Black "Han, Yichen"]
[WhiteFideId "5104742"]
[BlackFideId "1054430"]
[WhiteElo "2261"]
[BlackElo "2474"]
[Result "1/2-1/2"]
[Round "2"]
[TimeControl "180+2"]
[Date "2023.07.04"]
[WhiteClock "0:00:44"]
[BlackClock "0:01:58"]
[Board "159"]

1. Nf3 {[%clk 0:02:59]}  Nf6 {[%clk 0:02:59]} 2. b3 {[%clk 0:02:59]}  b6 {[%clk 0:02:57]} 3. Bb2 {[%clk 0:03:00]}  Bb7 {[%clk 0:02:58]} 4. g3 {[%clk 0:03:00]}  e6 {[%clk 0:02:58]} 5. Bg2 {[%clk 0:03:00]}  Be7 {[%clk 0:02:59]} 6. O-O {[%clk 0:02:57]}  O-O {[%clk 0:02:59]} 7. d3 {[%clk 0:02:56]}  c5 {[%clk 0:03:00]} 8. Nbd2 {[%clk 0:02:56]}  d5 {[%clk 0:02:59]} 9. e4 {[%clk 0:02:57]}  dxe4 {[%clk 0:02:58]} 10. dxe4 {[%clk 0:02:48]}  Nxe4 {[%clk 0:02:45]} 11. Nxe4 {[%clk 0:02:30]}  Bxe4 {[%clk 0:02:43]} 12. Qe2 {[%clk 0:02:30]}  Bb7 {[%clk 0:02:42]} 13. Rfd1 {[%clk 0:02:31]}  Qc8 {[%clk 0:02:40]} 14. Rd2 {[%clk 0:02:05]}  Nd7 {[%clk 0:02:35]} 15. Rad1 {[%clk 0:02:03]}  Nf6 {[%clk 0:02:35]} 16. Ne5 {[%clk 0:01:42]}  Bxg2 {[%clk 0:02:33]} 17. Kxg2 {[%clk 0:01:43]}  Qb7+ {[%clk 0:02:33]} 18. Qf3 {[%clk 0:01:39]}  Qxf3+ {[%clk 0:02:30]} 19. Kxf3 {[%clk 0:01:37]}  Nd5 {[%clk 0:02:26]} 20. c4 {[%clk 0:01:32]}  Nf6 {[%clk 0:02:14]} 21. Nd7 {[%clk 0:01:28]}  Nxd7 {[%clk 0:02:07]} 22. Rxd7 {[%clk 0:01:26]}  Bf6 {[%clk 0:02:08]} 23. Bxf6 {[%clk 0:01:21]}  gxf6 {[%clk 0:02:09]} 24. Rb7 {[%clk 0:01:14]}  Rfb8 {[%clk 0:02:03]} 25. Rc7 {[%clk 0:01:05]}  Rc8 {[%clk 0:01:59]} 26. Rb7 {[%clk 0:01:05]}  Rcb8 {[%clk 0:01:59]} 27. Rc7 {[%clk 0:01:04]}  Rc8 {[%clk 0:01:59]} 28. Rb7 {[%clk 0:00:44]}  Rcb8 {[%clk 0:01:58]} 1/2-1/2


[Site "https://www.chess.com"]

[Event "Titled Tuesday Blitz July 4 Late 2023"]
[White "Mendez Machado, Andre"]
[Black "Fiedorek, Michal"]
[WhiteFideId "6603793"]
[BlackFideId "1199528"]
[WhiteElo "2239"]
[BlackElo "2466"]
[Result "0-1"]
[Round "2"]
[TimeControl "180+2"]
[Date "2023.07.04"]
[WhiteClock "0:00:00"]
[BlackClock "0:01:08"]
[Board "163"]

1. e4 {[%clk 0:02:55]}  c6 {[%clk 0:02:59]} 2. d4 {[%clk 0:02:54]}  g6 {[%clk 0:03:00]} 3. f3 {[%clk 0:02:55]}  d5 {[%clk 0:03:01]} 4. c3 {[%clk 0:02:45]}  dxe4 {[%clk 0:02:59]} 5. fxe4 {[%clk 0:02:45]}  Nf6 {[%clk 0:03:00]} 6. Nd2 {[%clk 0:02:28]}  Bg7 {[%clk 0:02:59]} 7. Ngf3 {[%clk 0:02:28]}  O-O {[%clk 0:02:59]} 8. Be2 {[%clk 0:02:27]}  Nbd7 {[%clk 0:02:56]} 9. O-O {[%clk 0:02:26]}  Re8 {[%clk 0:02:49]} 10. Bc4 {[%clk 0:02:24]}  b5 {[%clk 0:02:48]} 11. Bxf7+ {[%clk 0:02:04]}  Kxf7 {[%clk 0:02:44]} 12. Ng5+ {[%clk 0:02:04]}  Kg8 {[%clk 0:02:44]} 13. Qb3+ {[%clk 0:02:05]}  e6 {[%clk 0:02:39]} 14. Nxe6 {[%clk 0:02:02]}  Rxe6 {[%clk 0:02:35]} 15. Qxe6+ {[%clk 0:02:03]}  Kh8 {[%clk 0:02:36]} 16. e5 {[%clk 0:01:38]}  Nb6 {[%clk 0:02:19]} 17. Qxc6 {[%clk 0:01:07]}  Ng4 {[%clk 0:02:18]} 18. Ne4 {[%clk 0:00:51]}  Bd7 {[%clk 0:02:18]} 19. Qd6 {[%clk 0:00:25]}  Bf8 {[%clk 0:01:59]} 20. Bg5 {[%clk 0:00:16]}  Qe8 {[%clk 0:01:45]} 21. Rxf8+ {[%clk 0:00:09]}  Qxf8 {[%clk 0:01:44]} 22. Bf6+ {[%clk 0:00:07]}  Nxf6 {[%clk 0:01:43]} 23. Qxf6+ {[%clk 0:00:07]}  Qxf6 {[%clk 0:01:42]} 24. Nxf6 {[%clk 0:00:08]}  Be6 {[%clk 0:01:37]} 25. Rd1 {[%clk 0:00:07]}  Nd5 {[%clk 0:01:36]} 26. Ne4 {[%clk 0:00:05]}  Ne3 {[%clk 0:01:32]} 27. Re1 {[%clk 0:00:04]}  Nf5 {[%clk 0:01:31]} 28. Nc5 {[%clk 0:00:04]}  Bd5 {[%clk 0:01:15]} 29. b3 {[%clk 0:00:04]}  Kg7 {[%clk 0:01:09]} 30. h3 {[%clk 0:00:02]}  h5 {[%clk 0:01:09]} 31. Kh2 {[%clk 0:00:03]}  h4 {[%clk 0:01:09]} 32. Re2 {[%clk 0:00:02]}  a5 {[%clk 0:01:09]} 33. Re1 {[%clk 0:00:02]}  a4 {[%clk 0:01:10]} 34. b4 {[%clk 0:00:00]}  Bxa2 {[%clk 0:01:08]} 0-1


[Site "https://www.chess.com"]

[Event "Titled Tuesday Blitz July 4 Late 2023"]
[White "Kovacevic, Radmila"]
[Black "QuiesPrecatio"]
[WhiteFideId "933171"]
[WhiteElo "2225"]
[BlackElo "2461"]
[Result "1-0"]
[Round "2"]
[TimeControl "180+2"]
[Date "2023.07.04"]
[WhiteClock "0:00:15"]
[BlackClock "0:00:00"]
[Board "165"]

1. e4 {[%clk 0:02:58]}  c5 {[%clk 0:02:59]} 2. Nf3 {[%clk 0:02:58]}  Nc6 {[%clk 0:02:57]} 3. Bc4 {[%clk 0:02:57]}  g6 {[%clk 0:02:56]} 4. c3 {[%clk 0:02:56]}  Bg7 {[%clk 0:02:55]} 5. d4 {[%clk 0:02:57]}  cxd4 {[%clk 0:02:55]} 6. cxd4 {[%clk 0:02:57]}  d6 {[%clk 0:02:53]} 7. d5 {[%clk 0:02:54]}  Ne5 {[%clk 0:02:51]} 8. Bb3 {[%clk 0:02:53]}  Bg4 {[%clk 0:02:38]} 9. h3 {[%clk 0:02:51]}  Nxf3+ {[%clk 0:02:33]} 10. gxf3 {[%clk 0:02:52]}  Bd7 {[%clk 0:02:34]} 11. f4 {[%clk 0:02:45]}  Qb6 {[%clk 0:02:28]} 12. Be3 {[%clk 0:02:37]}  Qb4+ {[%clk 0:02:28]} 13. Nc3 {[%clk 0:02:36]}  Bxc3+ {[%clk 0:02:24]} 14. bxc3 {[%clk 0:02:37]}  Qxe4 {[%clk 0:02:25]} 15. O-O {[%clk 0:02:14]}  Nh6 {[%clk 0:02:13]} 16. Bc2 {[%clk 0:02:01]}  Qc4 {[%clk 0:02:13]} 17. Bd4 {[%clk 0:01:49]}  O-O {[%clk 0:02:05]} 18. Bb3 {[%clk 0:01:46]}  Qc8 {[%clk 0:02:01]} 19. h4 {[%clk 0:01:41]}  Bh3 {[%clk 0:01:55]} 20. Re1 {[%clk 0:01:40]}  Re8 {[%clk 0:01:43]} 21. Re3 {[%clk 0:01:32]}  Bg4 {[%clk 0:01:36]} 22. f3 {[%clk 0:01:20]}  Bd7 {[%clk 0:01:26]} 23. Bc2 {[%clk 0:01:17]}  b5 {[%clk 0:01:16]} 24. Rb1 {[%clk 0:01:00]}  a6 {[%clk 0:01:12]} 25. h5 {[%clk 0:00:57]}  Bf5 {[%clk 0:00:59]} 26. hxg6 {[%clk 0:00:54]}  fxg6 {[%clk 0:00:59]} 27. Rb2 {[%clk 0:00:47]}  Bxc2 {[%clk 0:00:16]} 28. Rxc2 {[%clk 0:00:48]}  Qf5 {[%clk 0:00:16]} 29. Rh2 {[%clk 0:00:42]}  Nf7 {[%clk 0:00:15]} 30. Re6 {[%clk 0:00:34]}  h5 {[%clk 0:00:12]} 31. Qe1 {[%clk 0:00:28]}  Kf8 {[%clk 0:00:03]} 32. Qg3 {[%clk 0:00:22]}  Nh6 {[%clk 0:00:01]} 33. Rxg6 {[%clk 0:00:19]}  Qb1+ {[%clk 0:00:02]} 34. Kg2 {[%clk 0:00:18]}  Kf7 {[%clk 0:00:01]} 35. Rg7+ {[%clk 0:00:16]}  Kf8 {[%clk 0:00:00]} 36. Qg6 {[%clk 0:00:15]} 1-0


[Site "https://www.chess.com"]

[Event "Titled Tuesday Blitz July 4 Late 2023"]
[White "Shapiro, Viktor"]
[Black "Schachpanda_Youtube"]
[WhiteFideId "4175700"]
[WhiteElo "2459"]
[BlackElo "2219"]
[Result "1-0"]
[Round "2"]
[TimeControl "180+2"]
[Date "2023.07.04"]
[WhiteClock "0:00:34"]
[BlackClock "0:00:00"]
[Board "166"]

1. c4 {[%clk 0:02:57]}  e6 {[%clk 0:02:59]} 2. Nc3 {[%clk 0:02:57]}  d5 {[%clk 0:02:59]} 3. d4 {[%clk 0:02:57]}  Nf6 {[%clk 0:02:59]} 4. Nf3 {[%clk 0:02:57]}  Be7 {[%clk 0:02:59]} 5. Bg5 {[%clk 0:02:57]}  h6 {[%clk 0:02:59]} 6. Bh4 {[%clk 0:02:55]}  O-O {[%clk 0:02:59]} 7. e3 {[%clk 0:02:55]}  b6 {[%clk 0:02:57]} 8. Qc2 {[%clk 0:02:54]}  Bb7 {[%clk 0:02:57]} 9. Bxf6 {[%clk 0:02:53]}  Bxf6 {[%clk 0:02:57]} 10. cxd5 {[%clk 0:02:54]}  exd5 {[%clk 0:02:55]} 11. Rd1 {[%clk 0:02:50]}  Nd7 {[%clk 0:02:49]} 12. Bd3 {[%clk 0:02:45]}  c5 {[%clk 0:02:40]} 13. O-O {[%clk 0:02:38]}  Rc8 {[%clk 0:02:32]} 14. Bh7+ {[%clk 0:02:36]}  Kh8 {[%clk 0:02:31]} 15. Bf5 {[%clk 0:02:37]}  cxd4 {[%clk 0:02:10]} 16. Nxd4 {[%clk 0:02:37]}  g6 {[%clk 0:02:00]} 17. Bh3 {[%clk 0:02:27]}  Rc4 {[%clk 0:01:46]} 18. Ndb5 {[%clk 0:02:09]}  Ne5 {[%clk 0:01:25]} 19. Nxa7 {[%clk 0:02:01]}  Rh4 {[%clk 0:00:57]} 20. Nab5 {[%clk 0:01:43]}  Rxh3 {[%clk 0:00:54]} 21. gxh3 {[%clk 0:01:43]}  Nf3+ {[%clk 0:00:54]} 22. Kg2 {[%clk 0:01:43]}  d4 {[%clk 0:00:54]} 23. e4 {[%clk 0:01:37]}  Qc8 {[%clk 0:00:37]} 24. Kxf3 {[%clk 0:01:11]}  Qxh3+ {[%clk 0:00:33]} 25. Ke2 {[%clk 0:01:12]}  dxc3 {[%clk 0:00:28]} 26. Nxc3 {[%clk 0:01:10]}  Ba6+ {[%clk 0:00:25]} 27. Rd3 {[%clk 0:00:54]}  Rd8 {[%clk 0:00:18]} 28. Rd1 {[%clk 0:00:54]}  Rxd3 {[%clk 0:00:12]} 29. Rxd3 {[%clk 0:00:54]}  Qg4+ {[%clk 0:00:07]} 30. Kf1 {[%clk 0:00:47]}  Qf3 {[%clk 0:00:06]} 31. Ke1 {[%clk 0:00:36]}  Bxd3 {[%clk 0:00:06]} 32. Qd1 {[%clk 0:00:34]}  Qh1+ {[%clk 0:00:05]} 33. Kd2 {[%clk 0:00:35]}  Bg5+ {[%clk 0:00:04]} 34. Kxd3 {[%clk 0:00:34]}  Qxd1+ {[%clk 0:00:03]} 35. Nxd1 {[%clk 0:00:34]}  Kg7 {[%clk 0:00:02]} 36. h3 {[%clk 0:00:35]}  Bf4 {[%clk 0:00:00]} 37. b4 {[%clk 0:00:34]} 1-0


[Site "https://www.chess.com"]

[Event "Titled Tuesday Blitz July 4 Late 2023"]
[White "Balla, Tamas-Kristof"]
[Black "Thiel, Thomas"]
[WhiteFideId "1208497"]
[BlackFideId "4615964"]
[WhiteElo "2452"]
[BlackElo "2214"]
[Result "1-0"]
[Round "2"]
[TimeControl "180+2"]
[Date "2023.07.04"]
[WhiteClock "0:01:11"]
[BlackClock "0:01:25"]
[Board "168"]

1. e4 {[%clk 0:03:00]}  d5 {[%clk 0:02:59]} 2. exd5 {[%clk 0:03:00]}  Nf6 {[%clk 0:02:59]} 3. d4 {[%clk 0:03:00]}  Nxd5 {[%clk 0:02:59]} 4. c4 {[%clk 0:03:00]}  Nb6 {[%clk 0:02:57]} 5. Nc3 {[%clk 0:03:00]}  e5 {[%clk 0:02:57]} 6. d5 {[%clk 0:02:53]}  Bb4 {[%clk 0:02:56]} 7. Nf3 {[%clk 0:02:47]}  O-O {[%clk 0:02:52]} 8. Be2 {[%clk 0:02:44]}  c6 {[%clk 0:02:51]} 9. O-O {[%clk 0:02:36]}  Bxc3 {[%clk 0:02:49]} 10. bxc3 {[%clk 0:02:37]}  cxd5 {[%clk 0:02:48]} 11. Nxe5 {[%clk 0:02:33]}  dxc4 {[%clk 0:02:40]} 12. Nxc4 {[%clk 0:02:13]}  Nxc4 {[%clk 0:02:35]} 13. Bxc4 {[%clk 0:02:08]}  Qxd1 {[%clk 0:02:32]} 14. Rxd1 {[%clk 0:02:09]}  Nc6 {[%clk 0:02:30]} 15. Bf4 {[%clk 0:01:40]}  Re8 {[%clk 0:02:25]} 16. h3 {[%clk 0:01:37]}  Be6 {[%clk 0:02:24]} 17. Bxe6 {[%clk 0:01:34]}  Rxe6 {[%clk 0:02:22]} 18. Rd7 {[%clk 0:01:34]}  b6 {[%clk 0:02:18]} 19. Rad1 {[%clk 0:01:32]}  h6 {[%clk 0:02:17]} 20. Rc7 {[%clk 0:01:29]}  Rf6 {[%clk 0:01:55]} 21. Bg3 {[%clk 0:01:26]}  Na5 {[%clk 0:01:44]} 22. Rdd7 {[%clk 0:01:23]}  a6 {[%clk 0:01:44]} 23. Be5 {[%clk 0:01:11]}  Rf5 {[%clk 0:01:42]} 24. f4 {[%clk 0:01:12]}  Rf8 {[%clk 0:01:25]} 25. g4 {[%clk 0:01:11]} 1-0


[Site "https://www.chess.com"]